Date of Transaction,LA dept which incurred the expenditure,Beneficiary,Amount,VAT,Summary of the purpose of expenditure,Merchant Category
18/02/22,Department of the Deputy Chief Excutive Officer,DISCLOSURE AND BARRING,23.00,,DBA CHECK,GOVERNMENT SERVICES-NOT ELSEWHERE CLASSIFIED
16/02/22,Department of the Deputy Chief Excutive Officer,DISCLOSURE AND BARRING,23.00,,DBS CHECK,GOVERNMENT SERVICES-NOT ELSEWHERE CLASSIFIED
25/02/22,Department of the Deputy Chief Excutive Officer,HOTEL AT BOOKING.COM,38.00,,B&B CANCELLED,"LODGING-HOTELS,MOTELS,RESORTS-NOT CLASSIFIED"
25/02/22,Department of the Deputy Chief Excutive Officer,HOTEL AT BOOKING.COM,-38.00,,CANCELLED B&B BOOKING,"LODGING-HOTELS,MOTELS,RESORTS-NOT CLASSIFIED"
26/02/22,Department of the Deputy Chief Excutive Officer,TRAVELODGE,71.11,,B&B,TRAVELODGE
26/02/22,Department of the Deputy Chief Excutive Officer,TRAVELODGE,35.56,,B&B,TRAVELODGE
18/02/22,Department of the Deputy Chief Excutive Officer,VIVID HOUSING LTD,302.76,,RIA,BUSINESS SERVICES-NOT ELSEWHERE CLASSIFIED
19/02/22,Department of the Deputy Chief Excutive Officer,PREMIER INN,381.33,,B&B,PREMIER INN
14/02/22,Department of the Deputy Chief Excutive Officer,HOTEL IBIS,177.78,,B&B,HOTEL IBIS
14/02/22,Department of the Deputy Chief Excutive Officer,PREMIER INN,334.22,,B&B,PREMIER INN
11/02/22,Department of the Deputy Chief Excutive Officer,HOTEL IBIS,264.89,,B&B,HOTEL IBIS
08/02/22,Department of the Deputy Chief Excutive Officer,PREMIER INN,376.00,,B&B,PREMIER INN
31/01/22,Department of the Deputy Chief Excutive Officer,PREMIER INN,367.11,,B&B,PREMIER INN
31/01/22,Department of the Deputy Chief Excutive Officer,MARTIN MCCOLL,98.00,,GAS & ELECTRIC,"MISC FOOD STORE-CONVENIENCE,MRKT,SPLTY,VENDNG MACS"
31/01/22,Department of the Deputy Chief Excutive Officer,TIMPSON LTD,13.33,,KEYS,MISCELLANEOUS AND SPECIALTY RETAIL STORES
28/01/22,Department of the Deputy Chief Excutive Officer,HOTEL IBIS,448.00,,B&B,HOTEL IBIS
28/01/22,Department of the Deputy Chief Excutive Officer,VIVID HOUSING LTD,268.10,,RIA,BUSINESS SERVICES-NOT ELSEWHERE CLASSIFIED
22/02/22,Leisure & Community,1 AND 1 IONOS LTD,1.00,,IONOS SUBSCRIPTION,COMPUTER NETWORK/INFORMATION SERVICES
15/02/22,Leisure & Community,DISCLOSURE AND BARRING,23.00,,DBS CHECK,GOVERNMENT SERVICES-NOT ELSEWHERE CLASSIFIED
15/02/22,Leisure & Community,DISCLOSURE AND BARRING,23.00,,DBS CHECK,GOVERNMENT SERVICES-NOT ELSEWHERE CLASSIFIED
28/01/22,Leisure & Community,INGRAM IMAGE LIMIT,149.00,,SUBSCRIPTION RENEWAL,MISCELLANEOUS PUBLISHING AND PRINTING
30/01/22,Leisure & Community,VENNGAGE.COM,73.20,,VENNGAGE SUBSCRIPTION,"COMP PROGRAMING,DATA PRCSNG,INTGRTD SYS DSGN SRVS"
16/02/22,Planning & Regeneration,CASTLE (EU) LTD,707.24,,CLEANING SUPPLIES,INDUSTRIAL SUPPLIES NOT ELSEWHERE CLASSIFIED
15/02/22,Planning & Regeneration,AMZNMKTPLACE,40.82,,RADIOS,MISCELLANEOUS AND SPECIALTY RETAIL STORES
14/02/22,Planning & Regeneration,PRESSING NEEDS LTD,12.90,,SPLIT -MAYORAL WASHING,DRY CLEANERS
14/02/22,Planning & Regeneration,PRESSING NEEDS LTD,29.17,,SPLIT - CIVIC WASHING,DRY CLEANERS
10/02/22,Planning & Regeneration,E-BATH,125.12,,TOILET SEAT HINGES,"EQUIP, FURNITURE, HOME FURNSHNGS STRS (EXCPT APPL)"
07/02/22,Planning & Regeneration,SP   PAPER CUPS DIRECT,371.10,,PAPER CUPS,MISCELLANEOUS GENERAL MERCHANDISE
04/02/22,Planning & Regeneration,FIRSTAID4LESS.CO.UK,83.90,,FIRST AID SUPPLIES,MISCELLANEOUS AND SPECIALTY RETAIL STORES
02/02/22,Planning & Regeneration,AMZNMKTPLACE AMAZON.CO,5.91,,POWER LEAD,MISCELLANEOUS AND SPECIALTY RETAIL STORES
01/02/22,Planning & Regeneration,CASTLE (EU) LTD,337.64,,SUPPLIES(REFUND ABOVE TO BAL),INDUSTRIAL SUPPLIES NOT ELSEWHERE CLASSIFIED
01/02/22,Planning & Regeneration,CASTLE (EU) LTD,-45.74,,CLEANING SUPPLY REFUND LINKED,INDUSTRIAL SUPPLIES NOT ELSEWHERE CLASSIFIED
31/01/22,Planning & Regeneration,NUCOTRAINING,45.50,,FIRST AID CERTS,MISCELLANEOUS AND SPECIALTY RETAIL STORES
25/02/22,Support Services,SAINSBURYS S/MKTS,29.25,,ITEMS FOR FULL COUNCIL,"GROCERY STORES, SUPERMARKETS"
26/02/22,Support Services,EBAY COMMERCE UK LTD,3.74,,SPARE LID FOR SUGARBOWL,DEPARTMENT STORES
18/02/22,Support Services,SOOTHILLS LIMITED,31.84,,FOOD FOR MAYORS CIVIC DAY.,BAKERIES
18/02/22,Support Services,SOOTHILLS LIMITED,20.00,,FOOD FOR MAYOR'S CIVIC DAY,BAKERIES
14/02/22,Support Services,WILKO RETAIL LIMITED,3.50,,NAPKINS,MISCELLANEOUS GENERAL MERCHANDISE
03/02/22,Support Services,TESCO-STORES 6255,12.13,,ITEMS FOR DINNER PARTY,"GROCERY STORES, SUPERMARKETS"
31/01/22,Support Services,EBAY COMMERCE UK LTD,10.20,,TEA CUPS,DEPARTMENT STORES
31/01/22,Support Services,TESCO-STORES 6255,9.19,,ITEMS,"GROCERY STORES, SUPERMARKETS"
24/02/22,Streetscene,CARTERS OF SWANWIC,587.50,,RETIREMENT PRESENT,LAWN AND GARDEN SUPPLY STORES
21/02/22,Streetscene,CARTERS OF SWANWIC,42.30,,HOSE,LAWN AND GARDEN SUPPLY STORES
21/02/22,Streetscene,CROMA LOCKSMITHS & SEC,3.54,,KEY CUT TRADE,HARDWARE EQUIPMENT AND SUPPLIES
18/02/22,Streetscene,CROMA LOCKSMITHS & SEC,10.51,,ABLOY KEY,HARDWARE EQUIPMENT AND SUPPLIES
16/02/22,Streetscene,DVLA VEHICLE TAX,302.50,,VEH,TAX PAYMENTS
10/02/22,Streetscene,AMZNMKTPLACE,15.80,,RACK FOR FIRE COATS,MISCELLANEOUS AND SPECIALTY RETAIL STORES
07/02/22,Streetscene,STEWARTS GARDEN CENTRE,75.00,,PLANTS REPLACE FOR RESIDENT,LAWN AND GARDEN SUPPLY STORES
03/02/22,Streetscene,AMZNMKTPLACE,80.64,,DEVICE HOLDER,MISCELLANEOUS AND SPECIALTY RETAIL STORES
08/02/22,Planning & Regeneration,RICS COM GBP CYBS,350.01,,REGISTRATION FEE 2022,"ORGANIZATIONS, MEMBERSHIP-NOT ELSEWHERE CLASSIFIED"
23/02/22,Support Services,AMZNMKTPLACE AMAZON.CO,366.32,,WIRELESS MICE,MISCELLANEOUS AND SPECIALTY RETAIL STORES
21/02/22,Support Services,AMZNMKTPLACE AMAZON.CO,94.15,,LAPTOP BAGS,MISCELLANEOUS AND SPECIALTY RETAIL STORES
21/02/22,Support Services,AMZNMKTPLACE AMAZON.CO,161.40,,LAPTOP BAGS,MISCELLANEOUS AND SPECIALTY RETAIL STORES
21/02/22,Support Services,AMZNMKTPLACE AMAZON.CO,161.40,,LAPTOP BAGS,MISCELLANEOUS AND SPECIALTY RETAIL STORES
17/02/22,Support Services,AUTODESK ADY,355.00,,AUTOCAD SOFTWARE,DIGITAL GOODS SOFTWARE APPLICATIONS
15/02/22,Support Services,AMAZON.CO.UK 2L5OY66V4,18.12,,USB-C TO ETHERNET CONNECTOR,DIRECT MARKETING-OTHER DIRECT MARKETERS/NOT ELSEW.
03/02/22,Support Services,PREMIER FARNELL,22.96,,POWER CABLE,ELECTRICAL PARTS AND EQUIPMENT
03/02/22,Support Services,REVEALMEDIA,351.00,,DEMS SOFTWARE - CAR PARKS,CAMERA AND PHOTOGRAPHIC SUPPLY STORES
03/02/22,Support Services,SP   ACCUPART LTD,48.33,,LAPTOP SCREEN REPLACEMENT,"COMPUTERS, COMPUTER PERIPHERAL EQUIPMENT, SOFTWARE"
01/02/22,Support Services,AMZNMKTPLACE AMAZON.CO,15.74,,LAPTOP CASE,MISCELLANEOUS AND SPECIALTY RETAIL STORES
02/02/22,Support Services,AMZNMKTPLACE AMAZON.CO,10.40,,WIRELESS MOUSE,MISCELLANEOUS AND SPECIALTY RETAIL STORES
25/02/22,Department of the Deputy Chief Excutive Officer,WWW.THEDIAMONDSTORE.CO,245.83,,RETIREMENT GIFT,"PRECIOUS STONES AND METALS, WATCHES AND JEWELRY"
25/02/22,Department of the Deputy Chief Excutive Officer,WWW.THEJEWELLERS.C,71.25,,RETIREMENT GIFT,"CLOCK, JEWELRY, WATCH, AND SILVERWARE STORE"
07/02/22,Department of the Deputy Chief Excutive Officer,AMZNMKTPLACE AMAZON.CO,48.74,,WFH EQUIP,MISCELLANEOUS AND SPECIALTY RETAIL STORES
02/02/22,Department of the Deputy Chief Excutive Officer,SCREWFIX DIRECT,4.79,,MATERIALS,"BUILDING MATERIALS, LUMBER STORES"
24/02/22,Leisure & Community,SAINSBURYS S/MKTS,5.96,,SPLIT - EMERGENCY FOOD PARCELS,"GROCERY STORES, SUPERMARKETS"
24/02/22,Leisure & Community,SAINSBURYS S/MKTS,54.22,,SPLIT - EMERGENCY FOOD PARCELS,"GROCERY STORES, SUPERMARKETS"
24/02/22,Leisure & Community,WWW.BANNERWORLD.CO.UK,84.50,,EVENT FLAGS,MISCELLANEOUS PUBLISHING AND PRINTING
17/02/22,Leisure & Community,THE RIBBON COMPANY,40.79,,UNVEILING RIBBON,MISCELLANEOUS GENERAL MERCHANDISE
14/02/22,Leisure & Community,GAZEBOS GALORE BY TEME,694.80,,EVENT GAZEBO WEIGHTS,MISCELLANEOUS GENERAL MERCHANDISE
28/01/22,Leisure & Community,AMZNMKTPLACE,38.32,,EVENT FENCING,MISCELLANEOUS AND SPECIALTY RETAIL STORES
24/02/22,#REF!,SCREWFIX DIRECT,4.16,,CEILING TILES  X 4 BOX,"BUILDING MATERIALS, LUMBER STORES"
25/02/22,Department of the Deputy Chief Excutive Officer,REPLACEMENT CEILING TI,240.92,,JOB NUMBER: 146056,"BUILDING MATERIALS, LUMBER STORES"
25/02/22,Department of the Deputy Chief Excutive Officer,EBAY COMMERCE UK LTD,8.32,,JOB NUMBER: 146106,DEPARTMENT STORES
25/02/22,Department of the Deputy Chief Excutive Officer,DIRECT ACCESS AUTOMATI,27.53,,JOB NUMBER: 145920,PROFESSIONAL SERVICES-NOT ELSEWHERE CLASSIFIED
25/02/22,Department of the Deputy Chief Excutive Officer,SCREWFIX DIRECT,8.74,,JOB NUMBER: 145659,"BUILDING MATERIALS, LUMBER STORES"
26/02/22,Department of the Deputy Chief Excutive Officer,VELUX COMPANY LTD,126.00,,FLEA SPRAY  X 8,HOME SUPPLY WAREHOUSE STORES
24/02/22,Department of the Deputy Chief Excutive Officer,EBAY COMMERCE UK LTD,73.33,,ELECTRIC CHARGE FOR HIRE VAN,DEPARTMENT STORES
24/02/22,Department of the Deputy Chief Excutive Officer,POD POINT,14.36,,JOB NUMBER: 145382,ELECTRIC VEHICLE CHARGING
22/02/22,Department of the Deputy Chief Excutive Officer,IRONMONGERYDIRECT LTD,28.55,,MILWAUKEE ANGLE GRINDER X 4,HARDWARE STORES
21/02/22,Department of the Deputy Chief Excutive Officer,DUOTOOL DIRECT LTD,709.57,,TOOLS,HARDWARE STORES
21/02/22,Department of the Deputy Chief Excutive Officer,EBAY COMMERCE UK LTD,186.44,,JOB NUMBER: 145556,DEPARTMENT STORES
21/02/22,Department of the Deputy Chief Excutive Officer,PLUMBING4HOME.COM,29.98,,4 � ABRACS CBKIT5 CARBIDE KIT,PLUMBING AND HEATING EQUIPMENT
21/02/22,Department of the Deputy Chief Excutive Officer,TOOLSTOP.CO.UK,155.68,,JOB NUMBER: 144844,HARDWARE STORES
18/02/22,Department of the Deputy Chief Excutive Officer,HEATANDPLUMB COM,63.29,,INTA NON CONCUSSIVE TAPS  X 3,PLUMBING AND HEATING EQUIPMENT
18/02/22,Department of the Deputy Chief Excutive Officer,PLUMBARENA.CO.UK,179.64,,IOL MEMBERSHIP,HARDWARE STORES
18/02/22,Department of the Deputy Chief Excutive Officer,INST OF LIC,82.00,,MOISTURE METER,"ORGANIZATIONS, CHARITABLE AND SOCIAL SERVICES"
11/02/22,Leisure & Community,SMITHSURVEYINGEQUIP,223.00,,LASER MEASURER,"DURABLE GOODS, NOT ELSEWHERE CLASSIFIED"
14/02/22,Leisure & Community,AMAZON.CO.UK 2L6LV4B84,67.49,,UNDERSTANDINGAPPLYING HHSRS,DIRECT MARKETING-OTHER DIRECT MARKETERS/NOT ELSEW.
04/02/22,Leisure & Community,CHARTERED INSTITUTE OF,495.00,,UNDERSTANDINGAPPLYING HHSRS,"ORGANIZATIONS, CHARITABLE AND SOCIAL SERVICES"
04/02/22,Leisure & Community,CHARTERED INSTITUTE OF,495.00,,HHSRS ENFORCEMENT COURSE,"ORGANIZATIONS, CHARITABLE AND SOCIAL SERVICES"
04/02/22,Leisure & Community,CHARTERED INSTITUTE OF,280.00,,RETIREMENT CHAIR,"ORGANIZATIONS, CHARITABLE AND SOCIAL SERVICES"
23/02/22,Leisure & Community,THE RANGE,299.95,,COMMUNAL TV L,MISCELLANEOUS HOUSE FURNISHING SPECIALTY SHOPS
21/02/22,Department of the Deputy Chief Excutive Officer,TVLICENSING.CO.UK,159.00,,COMMUNAL TV L,"CONSULTING, MANAGEMENT, AND PUBLIC RELATIONS SVCS"
21/02/22,Department of the Deputy Chief Excutive Officer,TVLICENSING.CO.UK,159.00,,BEVERAGES - RETIREMENT,"CONSULTING, MANAGEMENT, AND PUBLIC RELATIONS SVCS"
21/02/22,Department of the Deputy Chief Excutive Officer,LIDL GB PORTCHESTER,6.34,,100-B'DAY FLOWERS,"GROCERY STORES, SUPERMARKETS"
09/02/22,Department of the Deputy Chief Excutive Officer,KNOT JUST BLOOMS,37.00,,AA BATTERIES,FLORISTS
08/02/22,Department of the Deputy Chief Excutive Officer,AMAZON.CO.UK DR7DT7FY5,14.98,,RETIREMENT CARD,DIRECT MARKETING-OTHER DIRECT MARKETERS/NOT ELSEW.
08/02/22,Department of the Deputy Chief Excutive Officer,CLINTONS 1172,6.00,,RETIREMENT-NECKLACE,"GIFT, CARD, NOVELTY AND SOUVENIR SHOPS"
07/02/22,Department of the Deputy Chief Excutive Officer,ETSY.COM - SILVERFEARN,199.20,,GREENHOUSE,ACCESSORY AND APPAREL STORES-MISCELLANEOUS
04/02/22,Department of the Deputy Chief Excutive Officer,AMZNMKTPLACE,19.88,,DENTAL,MISCELLANEOUS AND SPECIALTY RETAIL STORES
28/01/22,Department of the Deputy Chief Excutive Officer,MY DENTIST,237.50,,B&B,"DENTISTS, ORTHODONTISTS"
25/02/22,Department of the Deputy Chief Excutive Officer,CCI HOTEL RES,511.12,,SPLIT - STORAGE,TRAVEL AGENCIES AND TOUR OPERATORS
22/02/22,Department of the Deputy Chief Excutive Officer,WWW.SAFESTORE.CO.UK,18.60,,SPLIT - STORAGE,"PUBLIC WAREHOUSING-FARM, REFRIG GOODS, HHG STORAGE"
22/02/22,Department of the Deputy Chief Excutive Officer,WWW.SAFESTORE.CO.UK,68.06,,HOUSING CASE LAW BOOK,"PUBLIC WAREHOUSING-FARM, REFRIG GOODS, HHG STORAGE"
03/02/22,Department of the Deputy Chief Excutive Officer,WWW.LEXISNEXIS.CO.UK,119.48,,STORAGE COSTS,MISCELLANEOUS PUBLISHING AND PRINTING
03/02/22,Department of the Deputy Chief Excutive Officer,WWW.SAFESTORE.CO.UK,83.58,,POST FOR SIGNED,"PUBLIC WAREHOUSING-FARM, REFRIG GOODS, HHG STORAGE"
23/02/22,Department of the Deputy Chief Excutive Officer,POST OFFICE COUNTER,2.69,,ELECTRIC TOP UP,POSTAL SERVICES-GOVERNMENT ONLY
22/02/22,Department of the Deputy Chief Excutive Officer,ONE STOP 1530,25.00,,DEBT,"GROCERY STORES, SUPERMARKETS"
17/02/22,Department of the Deputy Chief Excutive Officer,SOUTHERN WATER SERVICE,51.15,,DEBT,"CONTRACTORS,SPECIAL TRADE-NOT ELSEWHERE CLASSIFIED"
17/02/22,Department of the Deputy Chief Excutive Officer,SOUTHERN WATER SERVICE,35.15,,RIA PAID,"CONTRACTORS,SPECIAL TRADE-NOT ELSEWHERE CLASSIFIED"
15/02/22,Department of the Deputy Chief Excutive Officer,VIVID HOUSING LTD,212.84,,KEY,BUSINESS SERVICES-NOT ELSEWHERE CLASSIFIED
15/02/22,Department of the Deputy Chief Excutive Officer,GOSPORT BCGH COUNCIL,7.50,,ELECTRIC DEBT,GOVERNMENT SERVICES-NOT ELSEWHERE CLASSIFIED
14/02/22,Department of the Deputy Chief Excutive Officer,WWW.UTILITA.CO.UK,25.00,,ELETRICITY TOP UP VOID,"UTLTS-ELCTRC, GAS, HEATING OIL, SANITARY, WATER"
03/02/22,Department of the Deputy Chief Excutive Officer,MARTIN MCCOLL,20.00,,MODERNGOV CERTIFICATE,"MISC FOOD STORE-CONVENIENCE,MRKT,SPLTY,VENDNG MACS"
09/02/22,Department of the Deputy Chief Excutive Officer,GMO GLOBALSIGN LIM,110.00,,ANNUAL SUBSCRIPTION,COMPUTER NETWORK/INFORMATION SERVICES
23/02/22,Support Services,HAMPSHIRE CHAMBER OF C,295.00,,MODGOV CERT,"CONSULTING, MANAGEMENT, AND PUBLIC RELATIONS SVCS"
24/02/22,Planning & Regeneration,GMO GLOBALSIGN LIM,129.00,,BATTERY FOR LAPTOP2,COMPUTER NETWORK/INFORMATION SERVICES
23/02/22,Support Services,WWW.THELAPTOPPOWERSUPP,50.83,,EXTERNAL DVD DRIVE,"COMPUTERS, COMPUTER PERIPHERAL EQUIPMENT, SOFTWARE"
23/02/22,Support Services,AMZNMKTPLACE,18.82,,BATTERY FOR LAPTOP,MISCELLANEOUS AND SPECIALTY RETAIL STORES
18/02/22,Support Services,AMZNMKTPLACE AMAZON.CO,29.16,,SPLIT - HEADSET1,MISCELLANEOUS AND SPECIALTY RETAIL STORES
18/02/22,Support Services,MEDIA & COMMUNICATIONS,185.25,,SPLIT - HEADSET2,TELECOMMUNICATION EQUIPMENT INCL TELEPHONE SALES
18/02/22,Support Services,MEDIA & COMMUNICATIONS,9.75,,GORILLA GLUE,TELECOMMUNICATION EQUIPMENT INCL TELEPHONE SALES
17/02/22,Support Services,WILKO RETAIL LIMITED,3.20,,HELMET,MISCELLANEOUS GENERAL MERCHANDISE
14/02/22,Support Services,AMAZON.CO.UK 2L38508K4,4.99,,DOCKING STATION ADAPTER,DIRECT MARKETING-OTHER DIRECT MARKETERS/NOT ELSEW.
14/02/22,Support Services,AMZNMKTPLACE,15.21,,GLOVES,MISCELLANEOUS AND SPECIALTY RETAIL STORES
14/02/22,Support Services,AMZNMKTPLACE AMAZON.CO,11.98,,ROPE AND GOGGLES,MISCELLANEOUS AND SPECIALTY RETAIL STORES
15/02/22,Support Services,AMAZON.CO.UK 2L0DH7644,16.87,,LAPTOP CHARGER,DIRECT MARKETING-OTHER DIRECT MARKETERS/NOT ELSEW.
10/02/22,Support Services,AMZNMKTPLACE,17.41,,BLANK ID CARDS,MISCELLANEOUS AND SPECIALTY RETAIL STORES
04/02/22,Support Services,DIGITAL ID,19.94,,BARCODE TAPE,"COMPUTERS, COMPUTER PERIPHERAL EQUIPMENT, SOFTWARE"
07/02/22,Support Services,AMZNMKTPLACE,10.33,,POSTAGE,MISCELLANEOUS AND SPECIALTY RETAIL STORES
03/02/22,Support Services,UPS LTD,15.59,,ERGONOMIC KEYBOARD,"COURIER SVC-AIR & GROUND, FREIGHT FORWARDERS"
02/02/22,Support Services,AMAZON.CO.UK N66LV00F5,44.99,,POSTAGE,DIRECT MARKETING-OTHER DIRECT MARKETERS/NOT ELSEW.
02/02/22,Support Services,UPS LTD,2.40,,7 X LAPTOP CHARGERS,"COURIER SVC-AIR & GROUND, FREIGHT FORWARDERS"
02/02/22,Support Services,AMZNMKTPLACE,103.20,,SPLIT - CASE AND PROTECTOR,MISCELLANEOUS AND SPECIALTY RETAIL STORES
02/02/22,Support Services,AMZNMKTPLACE,49.11,,SPLIT - CASE AND PROTECTOR2,MISCELLANEOUS AND SPECIALTY RETAIL STORES
02/02/22,Support Services,AMZNMKTPLACE,20.81,,SPLIT - CASE AND PROTECTOR3,MISCELLANEOUS AND SPECIALTY RETAIL STORES
02/02/22,Support Services,AMZNMKTPLACE,7.49,,SPLIT - CASE AND PROTECTOR4,MISCELLANEOUS AND SPECIALTY RETAIL STORES
02/02/22,Support Services,AMZNMKTPLACE,7.49,,USB C ADAPTERS,MISCELLANEOUS AND SPECIALTY RETAIL STORES
02/02/22,Support Services,AMZNMKTPLACE,14.32,,HEADSET,MISCELLANEOUS AND SPECIALTY RETAIL STORES
02/02/22,Support Services,MEDIA & COMMUNICATIONS,39.00,,ERGONOMIC KEYBOARD HOME,TELECOMMUNICATION EQUIPMENT INCL TELEPHONE SALES
02/02/22,Support Services,AMAZON.CO.UK 1N14I9QT5,44.99,,WIRECUTTER,DIRECT MARKETING-OTHER DIRECT MARKETERS/NOT ELSEW.
02/02/22,Support Services,AMZNMKTPLACE,5.82,,5M FIBRE PATCH LEADS,MISCELLANEOUS AND SPECIALTY RETAIL STORES
26/01/22,Support Services,PREMIER FARNELL,83.00,,HEADSET,ELECTRICAL PARTS AND EQUIPMENT
28/01/22,Support Services,MEDIA & COMMUNICATIONS,49.00,,HEADSET,TELECOMMUNICATION EQUIPMENT INCL TELEPHONE SALES
28/01/22,Support Services,MEDIA & COMMUNICATIONS,-10.00,,12 MONTH TAX,TELECOMMUNICATION EQUIPMENT INCL TELEPHONE SALES
16/02/22,Support Services,DVLA VEHICLE TAX,277.50,,12 MONTHS TAX,TAX PAYMENTS
16/02/22,Streetscene,DVLA VEHICLE TAX,302.50,,12 MONTHS TAX,TAX PAYMENTS
16/02/22,Streetscene,DVLA VEHICLE TAX,302.50,,12 MONTHS TAX,TAX PAYMENTS
16/02/22,Streetscene,DVLA VEHICLE TAX,302.50,,12 MONTH TAX,TAX PAYMENTS
16/02/22,Streetscene,DVLA VEHICLE TAX,302.50,,12 MONTH TAX,TAX PAYMENTS
16/02/22,Streetscene,DVLA VEHICLE TAX,302.50,,VEHICLE TAX,TAX PAYMENTS
28/01/22,Streetscene,POST OFFICE COUNTER,172.50,,2 COPIES PUBLICATIONS,POSTAL SERVICES-GOVERNMENT ONLY
03/02/22,Streetscene,AMZNMKTPLACE AMAZON.CO,60.00,,CROISSANTS FOR CIVIC AFTERNOON,MISCELLANEOUS AND SPECIALTY RETAIL STORES
24/02/22,Planning & Regeneration,TESCO-STORES 6255,2.95,,LGC SUBSCRIPTION,"GROCERY STORES, SUPERMARKETS"
10/02/22,Support Services,WWW.EMAP.COM,356.00,,MUNICIPAL JOURNAL SUBS,MISCELLANEOUS PUBLISHING AND PRINTING
02/02/22,Support Services,THE MJ/HEMMING GROUP L,140.00,,BOOSTED POST - CITIZEN HONOUR,"BOOKS,PERIODICALS AND NEWSPAPERS"
15/02/22,Support Services,FACEBK T2QLQBXMG2,14.00,,PUBLIC SECTOR TRAINING,ADVERTISING SERVICES
14/02/22,Leisure & Community,WWW.CIPR.CO.UK,305.00,,THE ECHO ON LINE,"ORGANIZATIONS, MEMBERSHIP-NOT ELSEWHERE CLASSIFIED"
02/02/22,Leisure & Community,DAILYECHOCOU ONLINE,4.99,,LAPTOP RISER - COMMUNICATIONS,NEWS DEALERS AND NEWSSTANDS
01/02/22,Leisure & Community,AMZNMKTPLACE AMAZON.CO,26.99,,THE NEWS ON LINE,MISCELLANEOUS AND SPECIALTY RETAIL STORES
01/02/22,Leisure & Community,JPIMEDIA,8.68,,EMPLOYEE MEDICAL EXPENSES,"ORGANIZATIONS, MEMBERSHIP-NOT ELSEWHERE CLASSIFIED"
15/02/22,Leisure & Community,DDB PHYSIOTHERAPY CLIN,48.00,,HR INNER CIRCLE SUBS,"HEALTH PRACTITIONERS, MEDICAL SRVCS-NOT ELSEWHERE"
10/02/22,Support Services,HR INNER CIRCLE,86.00,,EMPLOYEE MEDICAL EXPENSES,"ORGANIZATIONS, MEMBERSHIP-NOT ELSEWHERE CLASSIFIED"
01/02/22,Support Services,DDB PHYSIOTHERAPY CLIN,161.00,,JOB ADS,"HEALTH PRACTITIONERS, MEDICAL SRVCS-NOT ELSEWHERE"
01/02/22,Support Services,INDEED TEL+35312545907,97.87,,PART PAYMENT GAS COOKER,BUSINESS SERVICES-NOT ELSEWHERE CLASSIFIED
03/02/22,Support Services,SOUTH COAST APPLIANCES,222.00,,PART PAYMENT GAS COOKER,HOUSEHOLD APPLIANCE STORES
